fUSD/lending_fUSD_20260527
["ID","MTS","AMOUNT","RATE_DAILY","PERIOD"]
[423138465,1779886240000,-151.0,0.00035448,7]
[423138462,1779886240000,-250.46341063,0.00035448,120]
[423138456,1779886240000,-166.63,0.00035246,2]
[423138455,1779886240000,-200.0,0.00035201,15]
[423138469,1779886240000,-9999.99,0.00035455,2]
[423138466,1779886240000,-9999.99,0.00035455,2]
[423138473,1779886240000,-299.99,0.00035455,30]
[423138479,1779886240000,-300.0,0.00035504,10]
[423138475,1779886240000,-368.69231296,0.00035474,2]
[423138477,1779886240000,-250.0,0.000355,7]
[423138478,1779886240000,-300.0,0.00035501,10]
[423138476,1779886240000,-3115.10913253,0.00035479,2]
[423138487,1779886240000,-464.48677942,0.00035506,2]
[423138480,1779886240000,-300.0,0.00035505,10]
[423138483,1779886240000,-153.919325,0.00035505,7]
[423138482,1779886240000,-250.38727,0.00035505,7]
[423138486,1779886240000,-594.79850986,0.00035506,2]
[423138481,1779886240000,-2993.69,0.00035505,2]
[423138484,1779886240000,-1148.83589152,0.00035506,2]
[423138485,1779886240000,-310.02493426,0.00035506,2]
[423138458,1779886240000,-3115.10913253,0.00035326,2]
[423138474,1779886240000,-9999.99,0.00035455,2]
[423138454,1779886240000,-151.0,0.00035183,7]
[423138446,1779886240000,-151.0,0.00035,7]
[423138448,1779886240000,-430.6492467,0.00035088,2]
[423138433,1779886240000,-2000.0,0.000349,2]
[423138432,1779886240000,-17603.90524217,0.00034881,2]
[423138425,1779886240000,-151.0,0.000348,7]
[423138426,1779886240000,-250.0,0.000348,30]
[423138428,1779886240000,-151.0,0.000348,7]
[423138427,1779886240000,-250.0,0.000348,30]
[423138424,1779886240000,-151.0,0.000348,7]
[423138431,1779886240000,-165.31,0.00034843,2]
[423138430,1779886240000,-804.13336627,0.00034834,2]
[423138429,1779886240000,-151.0,0.000348,7]
[423138434,1779886240000,-471.2104,0.000349,120]
[423138444,1779886240000,-4295.88803711,0.00035,120]
[423138438,1779886240000,-166.29,0.00034983,2]
[423138440,1779886240000,-183.27090891,0.00035,2]
[423138436,1779886240000,-1100.0,0.000349,12]
[423138488,1779886240000,-397.81566495,0.00035506,2]
[423138439,1779886240000,-300.0,0.00034999,10]
[423138443,1779886240000,-502.62966706,0.00035,120]
[423138437,1779886240000,-25748.4565997,0.00034903,2]
[423138441,1779886240000,-2998.31178972,0.00035,120]
[423138442,1779886240000,-2998.31178972,0.00035,120]
[423138445,1779886240000,-4295.88803711,0.00035,120]
[423138447,1779886240000,-4009.2352367,0.00035087,2]
[423138449,1779886240000,-254.99,0.000351,7]
[423138460,1779886240000,-476.63,0.00035363,2]
[423138461,1779886240000,-25748.4565997,0.00035363,2]
[423138453,1779886240000,-24040.14294777,0.00035137,2]
[423138452,1779886240000,-25748.4565997,0.00035133,2]
[423138459,1779886240000,-334.60079797,0.00035362,2]
[423138450,1779886240000,-655.28274662,0.00035112,7]
[423138491,1779886240000,-484.76763572,0.00035506,2]
[423138471,1779886240000,-9999.99,0.00035455,2]
[423138492,1779886240000,-310.28230408,0.00035506,2]
[423138525,1779886240000,-300.0,0.00035506,2]
[423138526,1779886240000,-313.10763464,0.00035506,2]
[423138535,1779886240000,-1068.40163352,0.00035506,2]
[423138527,1779886240000,-1096.2926835,0.00035506,2]
[423138529,1779886240000,-300.0,0.00035506,2]
[423138531,1779886240000,-493.38669858,0.00035506,2]
[423138530,1779886240000,-462.10826183,0.00035506,2]
[423138538,1779886240000,-302.21937029,0.00035506,2]
[423138532,1779886240000,-605.31118564,0.00035506,2]
[423138537,1779886240000,-727.07827244,0.00035506,2]
[423138528,1779886240000,-300.0,0.00035506,2]
[423138534,1779886240000,-528.48327171,0.00035506,2]
[423138536,1779886240000,-894.65434383,0.00035506,2]
[423138539,1779886240000,-300.0,0.00035506,2]
[423138542,1779886240000,-1263.96825586,0.00035506,2]
[423138541,1779886240000,-300.0,0.00035506,2]
[423138552,1779886240000,-1634.44392223,0.00035506,2]
[423138545,1779886240000,-300.0,0.00035506,2]
[423138551,1779886240000,-310.02493426,0.00035506,2]
[423138548,1779886240000,-950.32029804,0.00035506,2]
[423138540,1779886240000,-300.99795142,0.00035506,2]
[423138546,1779886240000,-300.0,0.00035506,2]
[423138543,1779886240000,-527.62572404,0.00035506,2]
[423138550,1779886240000,-1148.83589152,0.00035506,2]
[423138547,1779886240000,-865.6208675,0.00035506,2]
[423138544,1779886240000,-344.45437934,0.00035506,2]
[423138549,1779886240000,-300.09384644,0.00035506,2]
[423138500,1779886240000,-528.48327171,0.00035506,2]
[423138553,1779886240000,-300.0,0.00035506,2]
[423138524,1779886240000,-310.28230408,0.00035506,2]
[423138523,1779886240000,-484.76763572,0.00035506,2]
[423138533,1779886240000,-300.0,0.00035506,2]
[423138522,1779886240000,-300.0,0.00035506,2]
[423138490,1779886240000,-300.0,0.00035506,2]
[423138515,1779886240000,-310.41151265,0.00035506,2]
[423138495,1779886240000,-1096.2926835,0.00035506,2]
[423138496,1779886240000,-493.38669858,0.00035506,2]
[423138499,1779886240000,-300.0,0.00035506,2]
[423138493,1779886240000,-300.0,0.00035506,2]
[423138494,1779886240000,-593.12439472,0.00035506,2]
[423138498,1779886240000,-605.31118564,0.00035506,2]
[423138497,1779886240000,-300.0,0.00035506,2]
[423138489,1779886240000,-452.52893397,0.00035506,2]
[423138501,1779886240000,-1068.40163352,0.00035506,2]
[423138513,1779886240000,-300.09384644,0.00035506,2]
[423138502,1779886240000,-894.65434383,0.00035506,2]
[423138504,1779886240000,-302.21937029,0.00035506,2]
[423138505,1779886240000,-300.0,0.00035506,2]
[423138512,1779886240000,-950.32029804,0.00035506,2]
[423138510,1779886240000,-527.62572404,0.00035506,2]
[423138521,1779886240000,-300.0,0.00035506,2]
[423138516,1779886240000,-594.79850986,0.00035506,2]
[423138519,1779886240000,-578.28315025,0.00035506,2]
[423138518,1779886240000,-300.0,0.00035506,2]
[423138517,1779886240000,-464.48677942,0.00035506,2]
[423138514,1779886240000,-1148.83589152,0.00035506,2]
[423138520,1779886240000,-452.52893397,0.00035506,2]
[423138503,1779886240000,-727.07827244,0.00035506,2]
[423138507,1779886240000,-300.0,0.00035506,2]
[423138506,1779886240000,-300.99795142,0.00035506,2]
[423138509,1779886240000,-344.45437934,0.00035506,2]
[423138508,1779886240000,-1263.96825586,0.00035506,2]
[423138511,1779886240000,-865.6208675,0.00035506,2]
[423138601,1779886241000,-300.0,0.00035506,2]
[423138603,1779886241000,-594.79850986,0.00035506,2]
[423138606,1779886241000,-300.0,0.00035506,2]
[423138605,1779886241000,-464.48677942,0.00035506,2]
[423138594,1779886241000,-865.6208675,0.00035506,2]
[423138600,1779886241000,-300.0,0.00035506,2]
[423138597,1779886241000,-310.02493426,0.00035506,2]
[423138595,1779886241000,-950.32029804,0.00035506,2]
[423138593,1779886241000,-300.0,0.00035506,2]
[423138591,1779886241000,-527.62572404,0.00035506,2]
[423138588,1779886241000,-300.0,0.00035506,2]
[423138583,1779886241000,-302.21937029,0.00035506,2]
[423138596,1779886241000,-1148.83589152,0.00035506,2]
[423138604,1779886241000,-300.0,0.00035506,2]
[423138614,1779886241000,-484.76763572,0.00035506,2]
[423138602,1779886241000,-300.0,0.00035506,2]
[423138599,1779886241000,-1634.44392223,0.00035506,2]
[423138608,1779886241000,-300.0,0.00035506,2]
[423138618,1779886241000,-572.23504944,0.00035506,2]
[423138619,1779886241000,-300.0,0.00035506,2]
[423138620,1779886241000,-1096.2926835,0.00035506,2]
[423138609,1779886241000,-452.52893397,0.00035506,2]
[423138607,1779886241000,-578.28315025,0.00035506,2]
[423138612,1779886241000,-300.0,0.00035506,2]
[423138613,1779886241000,-300.0,0.00035506,2]
[423138610,1779886241000,-300.0,0.00035506,2]
[423138611,1779886241000,-300.0,0.00035506,2]
[423138615,1779886241000,-310.28230408,0.00035506,2]
[423138586,1779886241000,-300.99795142,0.00035506,2]
[423138598,1779886241000,-300.0,0.00035506,2]
[423138587,1779886241000,-300.0,0.00035506,2]
[423138554,1779886241000,-594.79850986,0.00035506,2]
[423138582,1779886241000,-727.07827244,0.00035506,2]
[423138616,1779886241000,-300.0,0.00035506,2]
[423138564,1779886241000,-300.0,0.00035506,2]
[423138557,1779886241000,-300.50973823,0.00035506,2]
[423138562,1779886241000,-484.76763572,0.00035506,2]
[423138559,1779886241000,-300.0,0.00035506,2]
[423138565,1779886241000,-300.0,0.00035506,2]
[423138556,1779886241000,-578.28315025,0.00035506,2]
[423138563,1779886241000,-310.28230408,0.00035506,2]
[423138555,1779886241000,-464.48677942,0.00035506,2]
[423138561,1779886241000,-300.0,0.00035506,2]
[423138558,1779886241000,-452.52893397,0.00035506,2]
[423138560,1779886241000,-300.0,0.00035506,2]
[423138566,1779886241000,-300.0,0.00035506,2]
[423138567,1779886241000,-300.0,0.00035506,2]
[423138581,1779886241000,-300.0,0.00035506,2]
[423138577,1779886241000,-300.0,0.00035506,2]
[423138570,1779886241000,-300.0,0.00035506,2]
[423138578,1779886241000,-528.48327171,0.00035506,2]
[423138579,1779886241000,-1068.40163352,0.00035506,2]
[423138571,1779886241000,-300.0,0.00035506,2]
[423138568,1779886241000,-1096.2926835,0.00035506,2]
[423138576,1779886241000,-300.0,0.00035506,2]
[423138574,1779886241000,-386.65085318,0.00035506,2]
[423138573,1779886241000,-493.38669858,0.00035506,2]
[423138572,1779886241000,-300.0,0.00035506,2]
[423138592,1779886241000,-300.0,0.00035506,2]
[423138589,1779886241000,-1263.96825586,0.00035506,2]
[423138590,1779886241000,-344.45437934,0.00035506,2]
[423138585,1779886241000,-300.0,0.00035506,2]
[423138584,1779886241000,-300.0,0.00035506,2]
[423138569,1779886241000,-300.0,0.00035506,2]
[423138617,1779886241000,-300.0,0.00035506,2]
[423138575,1779886241000,-605.31118564,0.00035506,2]
[423138632,1779886241000,-894.65434383,0.00035506,2]
[423138655,1779886241000,-300.0,0.00035506,2]
[423138652,1779886241000,-310.02493426,0.00035506,2]
[423138659,1779886241000,-300.0,0.00035506,2]
[423138661,1779886241000,-464.48677942,0.00035506,2]
[423138671,1779886241000,-484.76763572,0.00035506,2]
[423138660,1779886241000,-300.0,0.00035506,2]
[423138667,1779886241000,-300.0,0.00035506,2]
[423138665,1779886241000,-452.52893397,0.00035506,2]
[423138662,1779886241000,-300.0,0.00035506,2]
[423138670,1779886241000,-300.0,0.00035506,2]
[423138663,1779886241000,-578.28315025,0.00035506,2]
[423138673,1779886241000,-300.0,0.00035506,2]
[423138666,1779886241000,-300.0,0.00035506,2]
[423138672,1779886241000,-310.28230408,0.00035506,2]
[423138668,1779886241000,-300.0,0.00035506,2]
[423138664,1779886241000,-300.0,0.00035506,2]
[423138669,1779886241000,-300.0,0.00035506,2]
[423138621,1779886241000,-300.0,0.00035506,2]
[423138683,1779886241000,-300.0,0.00035506,2]
[423138682,1779886241000,-300.0,0.00035506,2]
[423138684,1779886241000,-300.0,0.00035506,2]
[423138681,1779886241000,-300.0,0.00035506,2]
[423138679,1779886241000,-300.0,0.00035506,2]
[423138658,1779886241000,-594.79850986,0.00035506,2]
[423138680,1779886241000,-300.0,0.00035506,2]
[423138677,1779886241000,-1096.2926835,0.00035506,2]
[423138676,1779886241000,-361.3543706,0.00035506,2]
[423138674,1779886241000,-300.0,0.00035506,2]
[423138685,1779886241000,-300.0,0.00035506,2]
[423138686,1779886241000,-493.38669858,0.00035506,2]
[423138675,1779886241000,-300.0,0.00035506,2]
[423138678,1779886241000,-300.0,0.00035506,2]
[423138653,1779886241000,-300.0,0.00035506,2]
[423138580,1779886241000,-894.65434383,0.00035506,2]
[423138654,1779886241000,-1634.44392223,0.00035506,2]
[423138626,1779886241000,-605.31118564,0.00035506,2]
[423138624,1779886241000,-493.38669858,0.00035506,2]
[423138630,1779886241000,-528.48327171,0.00035506,2]
[423138631,1779886241000,-1068.40163352,0.00035506,2]
[423138633,1779886241000,-727.07827244,0.00035506,2]
[423138627,1779886241000,-300.0,0.00035506,2]
[423138622,1779886241000,-300.0,0.00035506,2]
[423138625,1779886241000,-300.00000001,0.00035506,2]
[423138629,1779886241000,-300.0,0.00035506,2]
[423138628,1779886241000,-300.0,0.00035506,2]
[423138635,1779886241000,-300.0,0.00035506,2]
[423138636,1779886241000,-300.0,0.00035506,2]
[423138646,1779886241000,-300.0,0.00035506,2]
[423138645,1779886241000,-527.62572404,0.00035506,2]
[423138644,1779886241000,-344.45437934,0.00035506,2]
[423138623,1779886241000,-300.0,0.00035506,2]
[423138634,1779886241000,-302.21937029,0.00035506,2]
[423138637,1779886241000,-300.99795142,0.00035506,2]
[423138657,1779886241000,-300.0,0.00035506,2]
[423138656,1779886241000,-300.0,0.00035506,2]
[423138650,1779886241000,-300.0,0.00035506,2]
[423138649,1779886241000,-950.32029804,0.00035506,2]
[423138648,1779886241000,-865.6208675,0.00035506,2]
[423138651,1779886241000,-1148.83589152,0.00035506,2]
[423138641,1779886241000,-300.0,0.00035506,2]
[423138639,1779886241000,-300.0,0.00035506,2]
[423138647,1779886241000,-300.00000001,0.00035506,2]
[423138640,1779886241000,-300.0,0.00035506,2]
[423138638,1779886241000,-300.0,0.00035506,2]
[423138643,1779886241000,-1263.96825586,0.00035506,2]
[423138642,1779886241000,-300.0,0.00035506,2]
[423138719,1779886242000,-310.02493426,0.00035506,2]
[423138727,1779886242000,-300.0,0.00035506,2]
[423138712,1779886242000,-300.0,0.00035506,2]
[423138722,1779886242000,-1634.44392223,0.00035506,2]
[423138732,1779886242000,-452.52893397,0.00035506,2]
[423138724,1779886242000,-300.0,0.00035506,2]
[423138723,1779886242000,-378.27714322,0.00035506,2]
[423138721,1779886242000,-300.0,0.00035506,2]
[423138725,1779886242000,-300.0,0.00035506,2]
[423138726,1779886242000,-594.79850986,0.00035506,2]
[423138730,1779886242000,-300.0,0.00035506,2]
[423138728,1779886242000,-300.0,0.00035506,2]
[423138743,1779886242000,-2786.94170278,0.00035606,2]
[423138729,1779886242000,-619.76849147,0.00035506,2]
[423138739,1779886242000,-310.28230408,0.00035506,2]
[423138740,1779886242000,-25748.4565997,0.00035594,2]
[423138744,1779886242000,-4515.01183057,0.0003561,2]
[423138734,1779886242000,-300.0,0.00035506,2]
[423138736,1779886242000,-300.0,0.00035506,2]
[423138742,1779886242000,-250.0,0.00035601,2]
[423138735,1779886242000,-300.0,0.00035506,2]
[423138733,1779886242000,-300.0,0.00035506,2]
[423138745,1779886242000,-150.6675,0.00035616,60]
[423138738,1779886242000,-484.76763572,0.00035506,2]
[423138737,1779886242000,-300.0,0.00035506,2]
[423138718,1779886242000,-1148.83589152,0.00035506,2]
[423138731,1779886242000,-578.28315025,0.00035506,2]
[423138716,1779886242000,-300.09384644,0.00035506,2]
[423138700,1779886242000,-300.0,0.00035506,2]
[423138711,1779886242000,-300.0,0.00035506,2]
[423138687,1779886242000,-300.0,0.00035506,2]
[423138689,1779886242000,-300.0,0.00035506,2]
[423138690,1779886242000,-605.31118564,0.00035506,2]
[423138698,1779886242000,-300.0,0.00035506,2]
[423138692,1779886242000,-300.0,0.00035506,2]
[423138697,1779886242000,-727.07827244,0.00035506,2]
[423138696,1779886242000,-894.65434383,0.00035506,2]
[423138691,1779886242000,-300.0,0.00035506,2]
[423138695,1779886242000,-523.56551988,0.00035506,2]
[423138694,1779886242000,-528.48327171,0.00035506,2]
[423138693,1779886242000,-300.0,0.00035506,2]
[423138699,1779886242000,-302.21937029,0.00035506,2]
[423138713,1779886242000,-300.0,0.00035506,2]
[423138701,1779886242000,-300.0,0.00035506,2]
[423138702,1779886242000,-300.99795142,0.00035506,2]
[423138703,1779886242000,-351.10144345,0.00035506,2]
[423138705,1779886242000,-300.0,0.00035506,2]
[423138706,1779886242000,-300.0,0.00035506,2]
[423138707,1779886242000,-300.0,0.00035506,2]
[423138704,1779886242000,-300.0,0.00035506,2]
[423138708,1779886242000,-1263.96825586,0.00035506,2]
[423138710,1779886242000,-527.62572404,0.00035506,2]
[423138709,1779886242000,-344.45437934,0.00035506,2]
[423138715,1779886242000,-950.32029804,0.00035506,2]
[423138714,1779886242000,-865.6208675,0.00035506,2]
[423138717,1779886242000,-300.0,0.00035506,2]
[423138741,1779886242000,-151.0,0.000356,7]
[423138746,1779886242000,-1000.0,0.00035616,30]
[423138688,1779886242000,-300.0,0.00035506,2]
[423138752,1779886242000,-151.0,0.00035616,7]
[423138781,1779886242000,-2786.94170278,0.0003608,2]
[423138783,1779886242000,-254.99,0.000361,7]
[423138782,1779886242000,-162.31,0.00036091,2]
[423138794,1779886242000,-300.0,0.00036164,120]
[423138785,1779886242000,-2786.94170278,0.00036116,2]
[423138786,1779886242000,-151.0,0.00036153,30]
[423138784,1779886242000,-2786.94170278,0.00036111,2]
[423138795,1779886242000,-300.0,0.00036164,120]
[423138787,1779886242000,-300.0,0.00036164,120]
[423138788,1779886242000,-300.0,0.00036164,120]
[423138790,1779886242000,-300.0,0.00036164,120]
[423138793,1779886242000,-300.0,0.00036164,120]
[423138792,1779886242000,-300.0,0.00036164,120]
[423138791,1779886242000,-300.0,0.00036164,120]
[423138789,1779886242000,-300.0,0.00036164,120]
[423138798,1779886242000,-300.0,0.00036164,120]
[423138799,1779886242000,-300.0,0.00036164,120]
[423138796,1779886242000,-300.0,0.00036164,120]
[423138800,1779886242000,-300.0,0.00036164,120]
[423138802,1779886242000,-300.0,0.00036164,120]
[423138797,1779886242000,-300.0,0.00036164,120]
[423138801,1779886242000,-300.0,0.00036164,120]
[423138806,1779886242000,-1149.3,0.000362,7]
[423138805,1779886242000,-1196.95,0.000362,7]
[423138803,1779886242000,-221.082727,0.00036164,120]
[423138804,1779886242000,-1246.31,0.000362,7]
[423138748,1779886242000,-1000.0,0.00035616,30]
[423138780,1779886242000,-25748.4565997,0.00036054,2]
[423138772,1779886242000,-742.81934,0.0003594,72]
[423138720,1779886242000,-300.0,0.00035506,2]
[423138776,1779886242000,-150.0,0.00035951,2]
[423138747,1779886242000,-1000.0,0.00035616,30]
[423138779,1779886242000,-2786.94170278,0.00036032,2]
[423138757,1779886242000,-2786.94170278,0.00035765,2]
[423138749,1779886242000,-1000.0,0.00035616,30]
[423138750,1779886242000,-1102.11452881,0.00035616,30]
[423138755,1779886242000,-3115.10913253,0.00035683,2]
[423138753,1779886242000,-197.117964,0.00035616,7]
[423138754,1779886242000,-303.80851446,0.00035616,7]
[423138756,1779886242000,-3115.10913253,0.00035717,2]
[423138759,1779886242000,-25748.4565997,0.00035824,2]
[423138769,1779886242000,-2786.94170278,0.00035931,2]
[423138770,1779886242000,-476.63545777,0.00035933,2]
[423138758,1779886242000,-700.0,0.00035817,2]
[423138762,1779886242000,-1544.0,0.00035846,7]
[423138751,1779886242000,-246.222556,0.00035616,7]
[423138760,1779886242000,-184.7831,0.00035837,2]
[423138778,1779886242000,-151.0,0.00036,14]
[423138761,1779886242000,-150.0,0.00035845,15]
[423138777,1779886242000,-502.62966706,0.00036,120]
[423138773,1779886242000,-742.81934,0.0003594,72]
[423138774,1779886242000,-742.81935,0.0003594,72]
[423138771,1779886242000,-742.81934,0.0003594,72]
[423138775,1779886242000,-150.0,0.00035951,2]
[423138766,1779886242000,-562.82375326,0.00035887,7]
[423138763,1779886242000,-1544.0,0.00035846,7]
[423138765,1779886242000,-1544.0,0.00035887,7]
[423138767,1779886242000,-2786.94170278,0.00035916,2]
[423138764,1779886242000,-2786.94170278,0.00035848,2]
[423138768,1779886242000,-4143.5307453,0.00035919,2]
[423138840,1779886243000,-151.0,0.00036458,7]
[423138845,1779886243000,-855.0,0.00036474,5]
[423138844,1779886243000,-245.0,0.00036458,7]
[423138848,1779886243000,-150.0,0.000366,30]
[423138847,1779886243000,-165.41,0.00036546,2]
[423138846,1779886243000,-25748.4565997,0.00036515,2]
[423138841,1779886243000,-151.0,0.00036458,7]
[423138842,1779886243000,-151.0,0.00036458,7]
[423138836,1779886243000,-151.0,0.00036458,7]
[423138843,1779886243000,-151.0,0.00036458,7]
[423138850,1779886243000,-3548.0,0.00036601,2]
[423138857,1779886243000,-2786.94170278,0.00036671,2]
[423138860,1779886243000,-155.94,0.00036701,30]
[423138855,1779886243000,-350.0,0.00036615,2]
[423138853,1779886243000,-300.0,0.00036603,10]
[423138858,1779886243000,-152.0,0.00036676,6]
[423138851,1779886243000,-525.0,0.00036601,2]
[423138859,1779886243000,-593.90836626,0.00036689,2]
[423138854,1779886243000,-130650.2713,0.00036608,30]
[423138852,1779886243000,-1272.0,0.00036601,2]
[423138856,1779886243000,-3185.03307453,0.00036624,7]
[423138861,1779886243000,-260.43685335,0.00036701,30]
[423138839,1779886243000,-151.0,0.00036458,7]
[423138866,1779886243000,-2786.94170278,0.00036803,2]
[423138849,1779886243000,-1356.0,0.00036601,2]
[423138838,1779886243000,-173.5410728,0.00036458,7]
[423138821,1779886243000,-891.38321,0.000363,76]
[423138835,1779886243000,-151.0,0.00036458,7]
[423138808,1779886243000,-1213.44,0.000362,7]
[423138807,1779886243000,-1151.06,0.000362,7]
[423138810,1779886243000,-2786.94170278,0.00036226,2]
[423138811,1779886243000,-368.69231296,0.00036248,2]
[423138814,1779886243000,-151.0,0.00036261,7]
[423138817,1779886243000,-985.0,0.00036297,5]
[423138815,1779886243000,-25748.4565997,0.00036285,2]
[423138813,1779886243000,-182.86,0.00036261,120]
[423138812,1779886243000,-300.0,0.0003626,10]
[423138816,1779886243000,-1023.0,0.00036297,5]
[423138819,1779886243000,-151.0,0.000363,2]
[423138820,1779886243000,-891.38321,0.000363,76]
[423138818,1779886243000,-1922.21,0.000363,14]
[423138809,1779886243000,-2786.94170278,0.00036216,2]
[423138825,1779886243000,-891.38321,0.000363,76]
[423138822,1779886243000,-891.38322,0.000363,76]
[423138827,1779886243000,-742.81934,0.000363,76]
[423138828,1779886243000,-446.21409114,0.000363,2]
[423138826,1779886243000,-742.81934,0.000363,76]
[423138829,1779886243000,-2786.94170278,0.00036306,2]
[423138833,1779886243000,-90490.0,0.000364,30]
[423138830,1779886243000,-166.63,0.00036372,2]
[423138832,1779886243000,-300.0,0.00036399,10]
[423138834,1779886243000,-924.5466787,0.00036432,2]
[423138831,1779886243000,-2786.94170278,0.00036398,2]
[423138837,1779886243000,-151.0,0.00036458,7]
[423138863,1779886243000,-159.28862893,0.00036704,60]
[423138868,1779886243000,-2786.94170278,0.00036861,2]
[423138865,1779886243000,-332.95,0.00036716,120]
[423138894,1779886243000,-2000.0,0.00037153,120]
[423138895,1779886243000,-2786.94170278,0.00037191,2]
[423138900,1779886243000,-1429.6173736,0.0003728,2]
[423138910,1779886243000,-2786.94170278,0.00037463,2]
[423138911,1779886243000,-2786.94170278,0.00037463,2]
[423138902,1779886243000,-218.45740462,0.000373,30]
[423138913,1779886243000,-199.97,0.00037472,120]
[423138899,1779886243000,-157.90300786,0.00037255,7]
[423138901,1779886243000,-2786.94170278,0.00037285,2]
[423138912,1779886243000,-199.97,0.00037472,120]
[423138864,1779886243000,-163.33,0.00036712,60]
[423138896,1779886243000,-10000.0,0.000372,120]
[423138904,1779886243000,-3135.0,0.00037341,3]
[423138906,1779886243000,-2786.94170278,0.0003737,2]
[423138908,1779886243000,-2786.94170278,0.00037419,2]
[423138914,1779886243000,-2786.94170278,0.0003748,2]
[423138916,1779886243000,-2786.94170278,0.00037498,2]
[423138918,1779886243000,-200.0,0.00037518,10]
[423138922,1779886243000,-244.89,0.000376,30]
[423138919,1779886243000,-157.90300786,0.00037529,7]
[423138921,1779886243000,-2786.94170278,0.00037555,2]
[423138915,1779886243000,-2786.94170278,0.00037482,2]
[423138917,1779886243000,-166.63,0.00037499,2]
[423138923,1779886243000,-26476.62964026,0.000376,30]
[423138903,1779886243000,-175.8955777,0.000373,30]
[423138897,1779886243000,-1922.21,0.000372,14]
[423138909,1779886243000,-150.0,0.00037449,2]
[423138892,1779886243000,-2786.94170278,0.00037113,2]
[423138893,1779886243000,-278.57,0.00037146,120]
[423138871,1779886243000,-2786.94170278,0.00036905,2]
[423138872,1779886243000,-10000.0,0.00036967,2]
[423138870,1779886243000,-248.54033598,0.00036899,2]
[423138867,1779886243000,-2786.94170278,0.00036849,2]
[423138862,1779886243000,-202.89814442,0.00036701,30]
[423138869,1779886243000,-2786.94170278,0.00036881,2]
[423138873,1779886243000,-157.90300786,0.00036981,7]
[423138874,1779886243000,-2786.94170278,0.00036981,2]
[423138876,1779886243000,-653.76632367,0.00037,120]
[423138875,1779886243000,-1341.79059644,0.00037,20]
[423138886,1779886243000,-150.0,0.00037093,2]
[423138878,1779886243000,-415.33758754,0.00037024,2]
[423138881,1779886243000,-300.0,0.00037066,10]
[423138879,1779886243000,-9073.32342271,0.00037024,2]
[423138877,1779886243000,-368.69231296,0.00037023,2]
[423138888,1779886243000,-150.0,0.00037093,2]
[423138898,1779886243000,-200.64187747,0.000372,120]
[423138890,1779886243000,-150.0,0.00037093,2]
[423138891,1779886243000,-3156.7059796,0.00037112,2]
[423138889,1779886243000,-150.0,0.00037093,2]
[423138885,1779886243000,-150.0,0.00037093,2]
[423138880,1779886243000,-822.60944483,0.00037024,2]
[423138882,1779886243000,-185.68119326,0.00037067,30]
[423138883,1779886243000,-256.87706002,0.00037067,30]
[423138884,1779886243000,-2786.94170278,0.00037083,2]
[423138887,1779886243000,-150.0,0.00037093,2]
[423138926,1779886244000,-300.0,0.00035506,2]
[423138925,1779886244000,-300.0,0.00035506,2]
[423138927,1779886244000,-300.0,0.00035506,2]
[423138929,1779886244000,-503.39128111,0.000376,30]
[423138924,1779886244000,-17603.90524217,0.00035063,2]
[423138928,1779886244000,-4840.69484419,0.000376,30]
[423138933,1779886244000,-317.51363456,0.00035244,2]
[423138930,1779886244000,-541.90514706,0.000376,30]
[423138934,1779886244000,-734.0417831,0.00035244,2]
[423138932,1779886244000,-18207.89538367,0.000376,30]
[423139036,1779886246000,-161.77,0.00031927,30]
[423139038,1779886246000,-898.47106835,0.00035244,2]
[423139281,1779886427000,294.87500725,0.00029816,2]
[423139282,1779886484000,501.0,0.00028,2]